bitfinex/quotes_BTCUSD_20250604
["timestamp","ask_amount","ask_price","bid_price","bid_amount"]
[1749055182675,5.303e-05,105180.0,105170.0,7.38082469]
[1749055182882,5.303e-05,105180.0,105170.0,7.21618165]
[1749055183097,5.303e-05,105180.0,105170.0,7.26375878]
[1749055183317,5.303e-05,105180.0,105170.0,7.26075878]
[1749055183752,5.303e-05,105180.0,105170.0,7.26475878]
[1749055183985,5.303e-05,105180.0,105170.0,7.22118165]
[1749055184205,5.303e-05,105180.0,105170.0,7.59419878]
[1749055184636,5.303e-05,105180.0,105170.0,7.21062165]
[1749055185639,5.303e-05,105180.0,105170.0,6.68553901]
[1749055186659,5.303e-05,105180.0,105170.0,7.09830101]
[1749055186874,5.303e-05,105180.0,105170.0,1.07087322]
[1749055187084,5.303e-05,105180.0,105170.0,0.90812185]
[1749055187286,5.303e-05,105180.0,105170.0,0.74940185]
[1749055187704,0.5737845,105180.0,105170.0,0.5038543]
[1749055187912,0.03235303,105180.0,105170.0,0.67711515]
[1749055188325,0.03235303,105180.0,105170.0,0.51839515]
[1749055188531,0.03235303,105180.0,105170.0,0.6866182]
[1749055188748,5.303e-05,105180.0,105170.0,0.6866182]
[1749055189371,5.303e-05,105180.0,105170.0,1.06532967]
[1749055189581,5.303e-05,105180.0,105170.0,1.2574943]
[1749055189788,5.303e-05,105180.0,105170.0,1.2594943]
[1749055189995,5.303e-05,105180.0,105170.0,0.71806283]
[1749055190240,5.303e-05,105180.0,105170.0,1.2554943]
[1749055190648,5.303e-05,105180.0,105170.0,1.2574943]
[1749055191287,5.303e-05,105180.0,105170.0,1.4107443]
[1749055191526,5.303e-05,105180.0,105170.0,1.4265443]
[1749055191748,5.303e-05,105180.0,105170.0,1.39305967]
[1749055193011,5.303e-05,105180.0,105170.0,1.39105967]
[1749055193219,5.303e-05,105180.0,105170.0,0.8496282]
[1749055193427,5.303e-05,105180.0,105170.0,1.38905967]
[1749055193616,5.303e-05,105180.0,105170.0,1.42654615]
[1749055194030,5.303e-05,105180.0,105170.0,1.75598615]
[1749055194229,5.303e-05,105180.0,105170.0,1.75998615]
[1749055194675,5.303e-05,105180.0,105170.0,1.67798615]
[1749055197347,5.303e-05,105180.0,105170.0,1.6634453]
[1749055197548,5.303e-05,105180.0,105170.0,1.67798615]
[1749055197957,5.303e-05,105180.0,105170.0,1.47294615]
[1749055200045,5.303e-05,105180.0,105170.0,1.43054615]
[1749055200882,5.303e-05,105180.0,105170.0,1.41600518]
[1749055201101,5.303e-05,105180.0,105170.0,0.88911456]
[1749055201330,5.303e-05,105180.0,105170.0,1.42970803]
[1749055203398,5.303e-05,105180.0,105170.0,1.39622167]
[1749055204252,5.303e-05,105180.0,105170.0,1.72566167]
[1749055204843,5.303e-05,105180.0,105170.0,1.64366167]
[1749055206872,5.303e-05,105180.0,105170.0,1.43862167]
[1749055207686,0.02155303,105200.0,105190.0,0.01454085]
[1749055207897,0.0216443,105200.0,105190.0,0.27141149]
[1749055208101,0.0216443,105200.0,105190.0,0.26903515]
[1749055208307,0.0216443,105200.0,105190.0,0.66903515]
[1749055209764,0.0216443,105200.0,105190.0,0.67003515]
[1749055209981,0.0216443,105200.0,105190.0,0.51239515]
[1749055210191,0.56307577,105200.0,105190.0,0.67099515]
[1749055210426,0.56307577,105200.0,105190.0,0.4978543]
[1749055210646,0.90307577,105200.0,105190.0,0.0978543]
[1749055210859,0.3616443,105200.0,105190.0,0.2564543]
[1749055211068,0.90307577,105200.0,105190.0,0.2564543]
[1749055211501,0.90307577,105200.0,105190.0,0.2554543]
[1749055212123,0.90307577,105200.0,105190.0,0.0968543]
[1749055212330,0.90307577,105200.0,105190.0,0.2554543]
[1749055212531,0.90307577,105200.0,105190.0,0.2544543]
[1749055214099,0.90307577,105200.0,105190.0,0.5017743]
[1749055215041,0.90307577,105200.0,105190.0,0.9017743]
[1749055215251,0.3616443,105200.0,105190.0,0.9017743]
[1749055215537,0.90307577,105200.0,105190.0,0.9017743]
[1749055220872,1.39657577,105200.0,105190.0,0.9017743]
[1749055224607,0.8551443,105200.0,105190.0,0.9017743]
[1749055224844,1.39657577,105200.0,105190.0,0.9017743]
[1749055227460,0.8551443,105200.0,105190.0,0.9017743]
[1749055227950,1.39657577,105200.0,105190.0,0.9017743]
[1749055232410,1.39657577,105200.0,105190.0,0.3008943]
[1749055232657,0.90307577,105200.0,105190.0,0.5017343]
[1749055238277,0.90307577,105200.0,105190.0,0.9017343]
[1749055239500,0.88767577,105200.0,105190.0,0.9017343]
[1749055239914,0.90277577,105200.0,105190.0,0.9017343]
[1749055246291,0.88767577,105200.0,105190.0,0.9017343]
[1749055246894,0.88152274,105200.0,105190.0,0.9017343]
[1749055247518,0.34009127,105200.0,105190.0,0.9017343]
[1749055247729,9.127e-05,105200.0,105190.0,0.7327943]
[1749055247942,9.127e-05,105200.0,105190.0,0.9335143]
[1749055250204,9.127e-05,105200.0,105190.0,0.7284743]
[1749055254010,9.127e-05,105200.0,105190.0,0.6862343]
[1749055254214,9.127e-05,105200.0,105190.0,0.9335143]
[1749055255461,0.54152274,105200.0,105190.0,0.9173143]
[1749055255794,0.54152274,105200.0,105190.0,0.9172743]
[1749055257288,0.54152274,105200.0,105190.0,0.9327743]
[1749055257637,0.54152274,105200.0,105190.0,0.9172743]
[1749055258532,0.54152274,105200.0,105190.0,0.9324743]
[1749055258740,9.127e-05,105200.0,105190.0,0.9324743]
[1749055259820,9.127e-05,105200.0,105190.0,0.7274343]
[1749055261945,9.127e-05,105200.0,105190.0,0.6851943]
[1749055264217,9.127e-05,105200.0,105190.0,0.9324743]
[1749055270051,9.127e-05,105200.0,105190.0,0.7274343]
[1749055270494,0.54152274,105200.0,105190.0,0.7274343]
[1749055270699,0.54152274,105200.0,105190.0,0.7122343]
[1749055271336,0.54152274,105200.0,105190.0,0.5115543]
[1749055271549,0.57242274,105200.0,105190.0,0.2542143]
[1749055271982,0.57242274,105200.0,105190.0,0.6542143]
[1749055272590,0.03099127,105200.0,105190.0,0.6542143]
[1749055272839,0.57242274,105200.0,105190.0,0.6542143]
[1749055274134,0.57242274,105200.0,105190.0,0.9014143]
[1749055274759,0.57242274,105200.0,105190.0,0.9013743]
[1749055275791,0.91242274,105200.0,105190.0,0.9013743]
[1749055275998,0.91242274,105200.0,105190.0,0.7008943]
[1749055276205,0.91242274,105200.0,105190.0,0.9013743]
[1749055279517,0.57242274,105200.0,105190.0,0.9013743]
[1749055281095,0.57242274,105200.0,105190.0,0.20504]
[1749055281096,0.91242274,105200.0,105190.0,0.20504]
[1749055281320,0.91242274,105200.0,105190.0,0.2472]
[1749055281321,1.45385421,105200.0,105190.0,0.2472]
[1749055281540,0.92149793,105200.0,105190.0,0.40552]
[1749055282662,0.91242274,105200.0,105190.0,0.40552]
[1749055285148,0.91242274,105200.0,105190.0,0.40548]
[1749055286866,0.88152274,105200.0,105190.0,0.40548]
[1749055287071,0.88152274,105200.0,105190.0,0.5174343]
[1749055288451,0.88152274,105200.0,105190.0,0.5013343]
[1749055289196,0.88152274,105200.0,105190.0,0.9013343]
[1749055292316,0.34009127,105200.0,105190.0,0.9013343]
[1749055292533,0.88152274,105200.0,105190.0,0.9013343]
[1749055294274,0.88152274,105200.0,105190.0,0.9164343]
[1749055295497,0.88152274,105200.0,105190.0,0.5164343]
[1749055295954,0.88152274,105200.0,105190.0,0.3430543]
[1749055296181,0.88152274,105200.0,105190.0,0.5012943]
[1749055301219,0.88152274,105200.0,105190.0,0.3430543]
[1749055301620,0.91252274,105200.0,105190.0,0.5012943]
[1749055301875,0.91252274,105200.0,105190.0,0.40536]
[1749055304315,0.88152274,105200.0,105190.0,0.40536]
[1749055304722,0.88152274,105200.0,105190.0,0.80536]
[1749055304882,0.88152274,105200.0,105190.0,0.64712]
[1749055305267,0.88152274,105200.0,105190.0,0.80532]
[1749055309720,0.88152274,105200.0,105190.0,0.40532]
[1749055310790,0.88152274,105200.0,105190.0,0.24712]
[1749055311012,0.91442274,105200.0,105190.0,0.40532]
[1749055311900,0.91442274,105200.0,105190.0,0.24712]
[1749055312104,0.91442274,105200.0,105190.0,0.40528]
[1749055312322,0.92349155,105200.0,105190.0,0.40528]
[1749055313617,0.92449155,105200.0,105190.0,0.40528]
[1749055314075,0.92349155,105200.0,105190.0,0.40528]
[1749055315430,0.92449155,105200.0,105190.0,0.40528]
[1749055315658,0.92449155,105200.0,105190.0,0.20504]
[1749055315857,1.46592302,105200.0,105190.0,0.24712]
[1749055316067,1.67202565,105200.0,105190.0,0.24712]
[1749055316320,0.0327,105180.0,105160.0,0.0307]
[1749055316511,0.88143147,105170.0,105160.0,0.1265543]
[1749055316666,0.88143147,105170.0,105160.0,0.5265543]
[1749055316868,0.88143147,105170.0,105160.0,0.4958543]
[1749055317097,0.88143147,105170.0,105160.0,0.0958543]
[1749055317457,0.88143147,105170.0,105160.0,0.2540143]
[1749055317759,0.89113169,105170.0,105160.0,0.2540143]
[1749055317958,0.89113169,105170.0,105160.0,0.2550143]
[1749055318873,0.89113169,105170.0,105160.0,0.2560143]
[1749055319490,0.89113169,105170.0,105160.0,0.2550143]
[1749055319630,0.89113169,105170.0,105160.0,0.2560143]
[1749055322244,0.89113169,105170.0,105160.0,0.2550143]
[1749055322439,0.89113169,105170.0,105160.0,0.2540143]
[1749055322701,0.89113169,105170.0,105160.0,0.2550143]
[1749055324147,0.89113169,105170.0,105160.0,0.5021743]
[1749055324347,0.89113169,105170.0,105160.0,0.5181743]
[1749055324563,0.34,105170.0,105160.0,0.5181743]
[1749055324779,0.88143147,105170.0,105160.0,0.5341743]
[1749055325810,0.34,105170.0,105160.0,0.5341743]
[1749055326009,0.88143147,105170.0,105160.0,0.5341743]
[1749055327656,0.88143147,105170.0,105160.0,0.5341343]
[1749055327861,0.34,105170.0,105160.0,0.5341343]
[1749055328064,0.88143147,105170.0,105160.0,0.5341343]
[1749055334316,0.88143147,105170.0,105160.0,0.5180543]
[1749055334761,0.88143147,105170.0,105160.0,0.5330543]
[1749055339778,0.88143147,105170.0,105160.0,0.24808]
[1749055340000,0.91253147,105170.0,105160.0,0.40616]
[1749055340567,0.91253147,105170.0,105160.0,0.20608]
[1749055340766,0.91253147,105170.0,105160.0,0.40616]
[1749055341609,0.91253147,105170.0,105160.0,0.24808]
[1749055341950,0.91253147,105170.0,105160.0,0.40616]
[1749055344712,0.91253147,105170.0,105160.0,0.24808]
[1749055344942,0.91253147,105170.0,105160.0,0.40616]
[1749055349194,1.45516028,105170.0,105160.0,0.40616]
[1749055350382,1.99719042,105170.0,105160.0,0.20608]
[1749055350584,1.99719042,105170.0,105160.0,0.24808]
[1749055350885,1.99819042,105170.0,105160.0,0.24708]
[1749055351083,1.99819042,105170.0,105160.0,0.40516]
[1749055351316,0.0306,105150.0,105130.0,0.50714096]
[1749055351486,0.0306,105150.0,105140.0,0.24712]
[1749055351670,0.0306,105150.0,105140.0,0.4052]
[1749055352580,0.57363014,105150.0,105140.0,0.40567981]
[1749055352782,1.11566028,105150.0,105140.0,0.40567981]
[1749055353225,0.57387785,105150.0,105140.0,0.40567981]
[1749055353426,1.1161557,105150.0,105140.0,0.40567981]
[1749055353725,1.1171557,105150.0,105140.0,0.40567981]
[1749055354157,1.4571557,105150.0,105140.0,0.40567981]
[1749055354995,1.4420557,105150.0,105140.0,0.40567981]
[1749055356155,1.4265557,105150.0,105140.0,0.40567981]
[1749055360512,1.4265557,105150.0,105140.0,0.20559981]
[1749055360824,1.4265557,105150.0,105140.0,0.40563981]
[1749055362065,1.4265557,105150.0,105140.0,0.40555981]
[1749055366374,1.4265557,105150.0,105140.0,0.20559981]
[1749055366693,1.4265557,105150.0,105140.0,0.40555981]
[1749055369503,1.4265557,105150.0,105140.0,0.24751981]
[1749055369504,1.4575557,105150.0,105140.0,0.24751981]
[1749055369720,1.4575557,105150.0,105140.0,0.20559981]
[1749055369933,1.4575557,105150.0,105140.0,0.40555981]
[1749055370145,1.4860827,105150.0,105140.0,0.24751981]
[1749055370356,1.4860827,105150.0,105140.0,0.40555981]
[1749055371028,1.4850827,105150.0,105140.0,0.40555981]
[1749055371213,1.4860827,105150.0,105140.0,0.40555981]
[1749055371493,1.4880827,105150.0,105140.0,0.40555981]
[1749055373171,1.49714384,105150.0,105140.0,0.40555981]
[1749055373608,1.49714501,105150.0,105140.0,0.40555981]
[1749055374028,1.46614501,105150.0,105140.0,0.20559981]
[1749055374230,1.43761801,105150.0,105140.0,0.42091981]
[1749055374444,1.43761801,105150.0,105140.0,0.43611981]
[1749055375747,1.41161801,105150.0,105140.0,0.43611981]
[1749055377268,0.86934016,105150.0,105140.0,0.43611981]
[1749055377498,0.86934962,105150.0,105140.0,0.43611981]
[1749055377706,0.86027785,105150.0,105140.0,0.43611981]
[1749055379288,0.86027785,105150.0,105140.0,0.53197411]
[1749055381980,1.4025557,105150.0,105140.0,0.33205411]
[1749055382193,1.4025557,105150.0,105140.0,0.53197411]
[1749055384825,0.86027785,105150.0,105140.0,0.53197411]
[1749055392125,1.4025557,105150.0,105140.0,0.53193411]
[1749055393450,0.318,105150.0,105140.0,0.53193411]
[1749055394342,0.004,105150.0,105140.0,0.53193411]
[1749055394579,0.004,105150.0,105140.0,0.54647496]
[1749055394796,0.004,105150.0,105140.0,0.58006744]
[1749055395410,0.002,105150.0,105140.0,0.58006744]
[1749055395827,0.002,105150.0,105140.0,0.54647496]
[1749055396246,0.54227785,105160.0,105140.0,0.51587496]
[1749055396457,0.54227785,105160.0,105150.0,0.1283543]
[1749055397397,0.54227785,105160.0,105150.0,0.5283543]
[1749055398003,0.54327785,105160.0,105150.0,0.5283543]
[1749055400431,0.54327785,105160.0,105150.0,0.1283543]
[1749055400844,0.54327785,105160.0,105150.0,0.5283543]
[1749055402777,0.88327785,105160.0,105150.0,0.5283543]
[1749055402994,0.88327785,105160.0,105150.0,0.7280743]
[1749055403210,0.341,105160.0,105150.0,0.7280743]
[1749055403456,0.88327785,105160.0,105150.0,0.7280743]
[1749055404079,0.88327785,105160.0,105150.0,0.9331943]
[1749055404511,0.88327785,105160.0,105150.0,0.7334743]
[1749055404694,0.88327785,105160.0,105150.0,0.9331543]
[1749055404852,0.88327785,105160.0,105150.0,0.5331543]
[1749055405257,0.88327785,105160.0,105150.0,0.9331543]
[1749055416197,0.88327785,105160.0,105150.0,0.9331143]
[1749055417112,0.88327785,105160.0,105150.0,0.7753143]
[1749055417303,0.88327785,105160.0,105150.0,0.9331143]
[1749055418044,0.88327785,105160.0,105150.0,0.5331143]
[1749055419341,0.88327785,105160.0,105150.0,0.3334743]
[1749055419563,0.88327785,105160.0,105150.0,0.5006143]
[1749055420237,0.88327785,105160.0,105150.0,0.3009743]
[1749055420418,0.88327785,105160.0,105150.0,0.40476]
[1749055421534,0.88327785,105160.0,105150.0,0.42056]
[1749055422606,0.88327785,105160.0,105150.0,0.40476]
[1749055423045,0.88327785,105160.0,105150.0,0.24696]
[1749055423251,0.89837785,105160.0,105150.0,0.40472]
[1749055423466,0.91337785,105160.0,105150.0,0.40472]
[1749055425883,0.91337785,105160.0,105150.0,0.24696]
[1749055426087,1.46475199,105160.0,105150.0,0.20512]
[1749055426293,1.46475199,105160.0,105150.0,0.40464]
[1749055426699,1.47612365,105160.0,105150.0,0.40464]
[1749055426926,1.49327499,105160.0,105150.0,0.40464]
[1749055429640,1.49327499,105160.0,105150.0,0.24688]
[1749055429856,1.49327499,105160.0,105150.0,0.40464]
[1749055432453,1.49087499,105160.0,105150.0,0.40464]
[1749055433193,1.49054604,105160.0,105150.0,0.40464]
[1749055433989,1.49053526,105160.0,105150.0,0.40464]
[1749055435014,1.49012415,105160.0,105150.0,0.40464]
[1749055435240,1.48103864,105160.0,105150.0,0.40464]
[1749055439901,1.57689294,105160.0,105150.0,0.20512]
[1749055440101,1.57689294,105160.0,105150.0,0.4046]
[1749055441782,1.57889294,105160.0,105150.0,0.4046]
[1749055443119,1.58189294,105160.0,105150.0,0.4046]
[1749055445925,1.56489294,105160.0,105150.0,0.4046]
[1749055452848,1.53289294,105160.0,105150.0,0.4046]
[1749055454852,1.53289294,105160.0,105150.0,0.40456]
[1749055455328,1.54426113,105160.0,105150.0,0.40456]
[1749055455570,1.54426113,105160.0,105150.0,0.20512]
[1749055455819,1.54426113,105160.0,105150.0,0.40444]
[1749055456495,0.45970543,105160.0,105150.0,0.40444]
[1749055456718,1.54426113,105160.0,105150.0,0.40444]
[1749055457200,1.54426113,105160.0,105150.0,0.20512]
[1749055457402,2.08644724,105160.0,105150.0,0.40444]
[1749055458989,2.08645513,105160.0,105150.0,0.40444]
[1749055459384,2.08645513,105160.0,105150.0,0.20512]
[1749055459623,2.08645513,105160.0,105150.0,0.40444]
[1749055459843,2.08645527,105160.0,105150.0,0.40444]
[1749055461451,2.05635527,105160.0,105150.0,0.43754]
[1749055461818,1.96050097,105160.0,105150.0,0.43644]
[1749055462469,1.95750097,105160.0,105150.0,0.43644]
[1749055463244,1.41505615,105160.0,105150.0,0.43644]
[1749055465055,1.41505615,105160.0,105150.0,0.43644]
[1749055472261,1.41506052,105160.0,105150.0,0.43644]
[1749055472927,0.87291238,105160.0,105150.0,0.43644]
[1749055473148,1.41506052,105160.0,105150.0,0.43644]
[1749055476652,0.86153108,105160.0,105150.0,0.43636]
[1749055476864,0.57567114,105160.0,105150.0,0.43636]
[1749055477073,0.54714814,105160.0,105150.0,0.43636]
[1749055477287,0.88714814,105160.0,105150.0,0.43636]
[1749055478592,0.345,105160.0,105150.0,0.43636]
[1749055478812,0.88714814,105160.0,105150.0,0.43636]
[1749055479938,0.88714814,105160.0,105150.0,0.5322143]
[1749055481457,0.345,105160.0,105150.0,0.5322143]
[1749055481667,0.88714814,105160.0,105150.0,0.5322143]
[1749055485416,1.42873808,105160.0,105150.0,0.5322143]
[1749055485630,1.42873808,105160.0,105150.0,0.9322143]
[1749055485843,1.42573808,105160.0,105150.0,0.9322143]
[1749055486581,1.42373808,105160.0,105150.0,0.9322143]
[1749055487021,0.54186904,105160.0,105150.0,0.9002143]
[1749055487665,0.54186904,105160.0,105150.0,0.9318143]
[1749055487889,0.34,105170.0,105160.0,0.0326]
[1749055488078,0.88186904,105170.0,105160.0,0.1284543]
[1749055489407,0.88375882,105170.0,105160.0,0.5284543]
[1749055489819,0.88575882,105170.0,105160.0,0.5284543]
[1749055490763,0.88575882,105170.0,105160.0,0.7275343]
[1749055492363,0.88575882,105170.0,105160.0,0.3275343]
[1749055492813,0.344,105170.0,105160.0,0.7275343]
[1749055493028,1.37925882,105170.0,105160.0,0.7275343]
[1749055495757,1.37925882,105170.0,105160.0,0.3275343]
[1749055496186,1.03925882,105170.0,105160.0,0.7275343]
[1749055497504,1.03925882,105170.0,105160.0,0.5700543]
[1749055497718,1.03925882,105170.0,105160.0,0.7274943]
[1749055499269,1.03925882,105170.0,105160.0,0.3274943]
[1749055499683,1.03925882,105170.0,105160.0,0.7274943]
[1749055500764,0.4975,105170.0,105160.0,0.7274943]
[1749055500976,0.4975,105170.0,105160.0,0.74203515]
[1749055501872,0.4955,105170.0,105160.0,0.74203515]
[1749055502085,0.4935,105170.0,105160.0,0.74303515]
[1749055502502,0.4935,105170.0,105160.0,0.74403515]
[1749055502711,0.4935,105170.0,105160.0,0.34403515]
[1749055503372,0.4935,105170.0,105160.0,0.74403515]
[1749055506263,0.88175882,105190.0,105180.0,0.0308]
[1749055506519,0.88175882,105190.0,105180.0,0.2840543]
[1749055506750,1.37525882,105200.0,105190.0,0.0316]
[1749055506977,1.37525882,105200.0,105190.0,0.1274543]
[1749055507190,1.03525882,105200.0,105190.0,0.1274543]
[1749055507625,0.49354797,105200.0,105190.0,0.1274543]
[1749055507838,0.83354797,105200.0,105190.0,0.1274543]
[1749055508270,1.37530679,105200.0,105190.0,0.1274543]
[1749055508962,1.94996561,105200.0,105170.0,0.032]
[1749055509191,1.09961764,105180.0,105170.0,0.0958543]
[1749055509406,1.09961764,105180.0,105160.0,0.032]
[1749055509407,0.34,105170.0,105160.0,0.032]
[1749055509618,0.88175882,105170.0,105160.0,0.6852543]
[1749055510294,0.88075882,105170.0,105160.0,0.6852543]
[1749055510712,0.88075882,105170.0,105160.0,0.2852543]
[1749055510945,0.0326,105190.0,105170.0,0.0152]
[1749055511153,0.0326,105190.0,105180.0,0.1574]
[1749055512200,1.45611764,105190.0,105180.0,0.1574]
[1749055512611,1.45711764,105190.0,105180.0,0.1574]
[1749055512816,1.45911764,105190.0,105180.0,0.1574]
[1749055513247,1.44261764,105190.0,105180.0,0.1574]
[1749055513453,0.54475882,105190.0,105180.0,0.1574]
[1749055513666,0.54475882,105190.0,105180.0,0.188]
[1749055513882,0.88475882,105190.0,105180.0,0.188]
[1749055514091,0.88475882,105190.0,105180.0,0.43472]
[1749055514480,0.88475882,105190.0,105180.0,0.41932]
[1749055515889,0.88475882,105190.0,105180.0,0.40412]
[1749055518838,1.42651764,105190.0,105180.0,0.40408]
[1749055519087,1.42651764,105190.0,105180.0,0.40404]
[1749055519955,0.88475882,105190.0,105180.0,0.40404]
[1749055521605,0.343,105190.0,105180.0,0.40404]
[1749055521806,0.88475882,105190.0,105180.0,0.40404]
[1749055527017,0.88475882,105190.0,105180.0,0.41994]
[1749055527238,0.88475882,105190.0,105180.0,0.43534]
[1749055528593,0.343,105190.0,105180.0,0.3322743]
[1749055528835,0.343,105190.0,105180.0,0.5311943]
[1749055528836,0.003,105190.0,105180.0,0.5311943]
[1749055529733,0.003,105190.0,105180.0,0.34061515]
[1749055529940,0.003,105190.0,105180.0,0.35006119]
[1749055530145,0.54180679,105200.0,105190.0,0.0317]
[1749055530146,0.86480679,105200.0,105190.0,0.0317]
[1749055530357,0.86480679,105200.0,105190.0,0.1275543]
[1749055531192,0.86480679,105200.0,105190.0,0.12993067]
[1749055531572,0.86480679,105200.0,105190.0,0.52993067]
[1749055531805,0.86480679,105200.0,105190.0,0.5275543]
[1749055532012,0.86580679,105200.0,105190.0,0.5275543]
[1749055532225,0.86480679,105200.0,105190.0,0.5275543]
[1749055532450,0.003,105200.0,105190.0,0.54209515]
[1749055532663,0.004,105200.0,105190.0,0.54209515]
[1749055532872,0.001,105200.0,105190.0,0.54209515]
[1749055533089,0.002,105200.0,105190.0,0.54209515]
[1749055533297,0.001,105200.0,105190.0,0.54209515]
[1749055533510,0.001,105200.0,105190.0,0.61803611]
[1749055533726,0.54175882,105230.0,105210.0,0.031]
[1749055533941,0.57320267,105240.0,105220.0,0.1275543]
[1749055534151,0.92251009,105240.0,105230.0,0.19888]
[1749055534363,0.92251009,105240.0,105220.0,0.3009343]
[1749055534580,0.34,105230.0,105220.0,0.20508]
[1749055534790,0.34,105230.0,105220.0,0.24664]
[1749055534791,0.3713,105230.0,105220.0,0.24664]
[1749055535002,0.3713,105230.0,105220.0,0.40396]
[1749055535217,1.45481764,105230.0,105220.0,0.40396]
[1749055536092,1.46371014,105230.0,105220.0,0.40396]
[1749055536293,1.45481764,105230.0,105220.0,0.40396]
[1749055536504,1.45581764,105230.0,105220.0,0.40396]
[1749055536935,1.4657068,105230.0,105220.0,0.40396]
[1749055537167,1.49728567,105230.0,105220.0,0.40396]
[1749055537392,1.51163879,105230.0,105220.0,0.40396]
[1749055537601,1.50274966,105230.0,105220.0,0.40396]
[1749055538235,1.53830198,105230.0,105220.0,0.40396]
[1749055538424,1.54719058,105230.0,105220.0,0.40396]
[1749055538672,1.52052582,105230.0,105220.0,0.40396]
[1749055538923,1.53830247,105230.0,105220.0,0.40396]
[1749055539134,1.52052582,105230.0,105220.0,0.40396]
[1749055539373,1.54902982,105230.0,105220.0,0.40396]
[1749055539642,1.56680673,105230.0,105220.0,0.40396]
[1749055539809,1.03393634,105230.0,105220.0,0.40396]
[1749055540051,1.007271,105230.0,105220.0,0.40396]
[1749055540255,1.02504789,105230.0,105220.0,0.40396]
[1749055540457,1.02504812,105230.0,105220.0,0.40396]
[1749055540782,1.03393633,105230.0,105220.0,0.40396]
[1749055541024,1.007271,105230.0,105220.0,0.40396]
[1749055541380,1.57569515,105230.0,105220.0,0.40396]
[1749055541607,1.55791827,105230.0,105220.0,0.40396]
[1749055541809,1.54902982,105230.0,105220.0,0.04152]
[1749055542222,1.55791826,105230.0,105220.0,0.04152]
[1749055542428,1.54902982,105230.0,105220.0,0.04152]
[1749055542646,1.007271,105230.0,105220.0,0.04152]
[1749055542850,1.0250479,105230.0,105220.0,0.04152]
[1749055542985,1.007271,105230.0,105220.0,0.1988]
[1749055543189,1.01615942,105230.0,105220.0,0.1988]
[1749055543391,1.007271,105230.0,105220.0,0.1988]
[1749055543635,1.02504786,105230.0,105220.0,0.1988]
[1749055543832,1.03393546,105230.0,105220.0,0.1988]
[1749055544064,1.03393498,105230.0,105220.0,0.40384]
[1749055544270,1.02504786,105230.0,105220.0,0.40384]
[1749055544472,0.99654386,105230.0,105220.0,0.40384]
[1749055545071,1.00543071,105230.0,105220.0,0.40384]
[1749055545223,0.99654386,105230.0,105220.0,0.40384]
[1749055546548,1.0054306,105230.0,105220.0,0.40384]
[1749055546752,0.99654386,105230.0,105220.0,0.40384]
[1749055547143,0.93708967,105230.0,105220.0,0.40384]
[1749055547559,0.94597502,105230.0,105220.0,0.40384]
[1749055547756,0.93708967,105230.0,105220.0,0.40384]
[1749055548379,0.9459749,105230.0,105220.0,0.40384]
[1749055548613,0.39533085,105230.0,105220.0,0.40384]
[1749055548801,0.93708967,105230.0,105220.0,0.40384]
[1749055549192,0.93708967,105230.0,105220.0,0.41974]
[1749055549394,0.93708967,105230.0,105220.0,0.43554]
[1749055551721,0.93708967,105230.0,105220.0,0.41974]
[1749055554507,0.39533085,105230.0,105220.0,0.41974]
[1749055554712,0.93708967,105230.0,105220.0,0.41974]
[1749055557969,0.94597655,105230.0,105220.0,0.41974]
[1749055558174,0.93708967,105230.0,105220.0,0.41974]
[1749055558764,0.93708967,105230.0,105220.0,0.43504]
[1749055559270,0.94597643,105230.0,105220.0,0.43504]
[1749055559506,0.93708967,105230.0,105220.0,0.41974]
[1749055559724,0.94597643,105230.0,105220.0,0.41974]
[1749055559931,0.93708967,105230.0,105220.0,0.40384]
[1749055561200,0.94597645,105230.0,105220.0,0.40384]
[1749055561446,0.93708967,105230.0,105220.0,0.43404]
[1749055561891,0.94597678,105230.0,105220.0,0.43404]
[1749055562106,0.39533085,105230.0,105220.0,0.43404]
[1749055562358,0.9459769,105230.0,105220.0,0.5298943]
[1749055562641,0.59708967,105230.0,105220.0,0.5298943]
[1749055562882,0.05533085,105230.0,105220.0,0.5298943]
[1749055563361,0.59708967,105230.0,105220.0,0.5298943]
[1749055564086,0.93708967,105230.0,105220.0,0.5298943]
[1749055566445,0.93708967,105230.0,105220.0,0.4996543]
[1749055566906,0.93708967,105230.0,105220.0,0.8996543]
[1749055569255,0.93708967,105230.0,105220.0,0.9152543]
[1749055569939,1.43058967,105230.0,105220.0,0.9152543]
[1749055570613,1.43058967,105230.0,105220.0,0.8996543]
[1749055571037,1.43058967,105230.0,105220.0,0.7008943]
[1749055571261,1.43058967,105230.0,105220.0,0.8996543]
[1749055571718,1.44678967,105230.0,105220.0,0.8996543]
[1749055572139,1.43058967,105230.0,105220.0,0.8996543]
[1749055572351,1.43058967,105230.0,105220.0,0.9156543]
[1749055573825,1.43058967,105230.0,105220.0,0.8996543]
[1749055577742,1.43058967,105230.0,105220.0,0.3424143]
[1749055577743,1.09058967,105230.0,105220.0,0.3424143]
[1749055578011,1.12088967,105230.0,105220.0,0.40376]
[1749055578883,1.12088967,105230.0,105220.0,0.24656]
[1749055579095,1.12088967,105230.0,105220.0,0.40376]
[1749055579096,1.46088967,105230.0,105220.0,0.40376]
[1749055579305,1.46088967,105230.0,105220.0,0.24656]
[1749055579526,1.46088967,105230.0,105220.0,0.40376]
[1749055583615,1.46088967,105230.0,105220.0,0.20504]
[1749055583821,1.46088967,105230.0,105220.0,0.40372]
[1749055584253,1.46088967,105230.0,105220.0,0.24652]
[1749055584461,1.46088967,105230.0,105220.0,0.40372]
[1749055585811,1.44568967,105230.0,105220.0,0.40372]
[1749055586262,2.00274849,105230.0,105220.0,0.20504]
[1749055586492,2.0426046,105230.0,105220.0,0.40372]
[1749055586707,2.04014256,105230.0,105220.0,0.40372]
[1749055587145,2.04903583,105230.0,105220.0,0.40372]
[1749055587368,2.04014256,105230.0,105220.0,0.40372]
[1749055587603,1.56442882,105230.0,105220.0,0.40372]
[1749055587815,1.56442872,105230.0,105220.0,0.40372]
[1749055588040,1.57332181,105230.0,105220.0,0.40372]
[1749055588249,1.54664256,105230.0,105220.0,0.40372]
[1749055588692,1.55553592,105230.0,105220.0,0.40372]
[1749055588898,1.54664256,105230.0,105220.0,0.40372]
[1749055589373,1.55553605,105230.0,105220.0,0.40372]
[1749055589589,1.54664256,105230.0,105220.0,0.40372]
[1749055589797,1.56442987,105230.0,105220.0,0.40372]
[1749055590008,1.54664256,105230.0,105220.0,0.40372]
[1749055590686,1.00488374,105230.0,105220.0,0.40372]
[1749055590907,1.01377736,105230.0,105220.0,0.40372]
[1749055591131,1.01377733,105230.0,105220.0,0.40372]
[1749055591349,1.02267094,105230.0,105220.0,0.40372]
[1749055591558,1.00488374,105230.0,105220.0,0.40372]
[1749055591762,1.01377733,105230.0,105220.0,0.40372]
[1749055591989,1.00488374,105230.0,105220.0,0.40372]